fUST/lending_fUST_20240608
["ID","MTS","AMOUNT","RATE_DAILY","PERIOD"]
[328835680,1717858246178,-500.0,0.00016712,2]
[328835682,1717858246187,-500.0,0.00016712,2]
[328835684,1717858246197,-500.0,0.00016712,2]
[328835686,1717858246207,-500.0,0.00016712,2]
[328835688,1717858246217,-500.0,0.00016712,2]
[328835690,1717858246227,-500.0,0.00016712,2]
[328835692,1717858246237,-500.0,0.00016712,2]
[328835694,1717858246247,-500.0,0.00016712,2]
[328835696,1717858246256,-500.0,0.00016712,2]
[328835698,1717858246267,-500.0,0.00016712,2]
[328835700,1717858246277,-500.0,0.00016712,2]
[328835702,1717858246287,-500.0,0.00016712,2]
[328835704,1717858246296,-500.0,0.00016712,2]
[328835706,1717858246307,-615.71,0.00016712,2]
[328835708,1717858246317,-500.0,0.00016712,2]
[328835710,1717858246327,-500.0,0.00016712,2]
[328835712,1717858246337,-200.0,0.00016712,2]
[328835714,1717858246347,-500.0,0.00016712,2]
[328835716,1717858246356,-500.0,0.00016712,2]
[328835718,1717858246366,-500.0,0.00016712,2]
[328835720,1717858246376,-500.0,0.00016712,2]
[328835722,1717858246386,-904.71,0.00016712,2]
[328835724,1717858246396,-500.0,0.00016712,2]
[328835726,1717858246406,-500.0,0.00016712,2]
[328835728,1717858246416,-500.0,0.00016712,2]
[328835730,1717858246426,-897.11,0.00016712,2]
[328835732,1717858246436,-500.0,0.00016712,2]
[328835734,1717858246447,-548.57,0.00016712,2]
[328835736,1717858246458,-500.0,0.00016712,2]
[328835738,1717858246468,-500.0,0.00016712,2]
[328835740,1717858246478,-508.10192408,0.00016712,2]
[328835742,1717858246488,-930.84,0.00016712,2]
[328835744,1717858246498,-500.0,0.00016712,2]
[328835746,1717858246508,-500.0,0.00016712,2]
[328835748,1717858246520,-635.21,0.00016712,2]
[328835750,1717858246530,-500.0,0.00016712,2]
[328835752,1717858246540,-2433.12,0.00016712,2]
[328835754,1717858246550,-500.0,0.00016712,2]
[328835756,1717858246561,-1084.26,0.00016712,2]
[328835758,1717858246571,-500.0,0.00016712,2]
[328835760,1717858246581,-1173.85,0.00016712,2]
[328835762,1717858246592,-500.0,0.00016712,2]
[328835765,1717858246602,-500.0,0.00016712,2]
[328835768,1717858246612,-500.0,0.00016712,2]
[328835771,1717858246623,-500.0,0.00016712,2]
[328835774,1717858246633,-614.06,0.00016712,2]
[328835777,1717858246644,-500.0,0.00016712,2]
[328835780,1717858246654,-500.0,0.00016712,2]
[328835783,1717858246664,-215.10187374,0.00016712,2]
[328835786,1717858246673,-500.0,0.00016712,2]
[328835789,1717858246683,-500.0,0.00016712,2]
[328835792,1717858246694,-500.0,0.00016712,2]
[328835795,1717858246705,-642.03,0.00016712,2]
[328835798,1717858246715,-1741.6,0.00016712,2]
[328835801,1717858246726,-3077.32,0.00016712,2]
[328835804,1717858246737,-500.0,0.00016712,2]
[328835807,1717858246749,-500.0,0.00016712,2]
[328835810,1717858246762,-500.0,0.00016712,2]
[328835813,1717858246773,-500.0,0.00016712,2]
[328835816,1717858246783,-500.0,0.00016712,2]
[328835818,1717858246794,-500.0,0.00016712,2]
[328835820,1717858246804,-1743.7,0.00016712,2]
[328835824,1717858246814,-500.0,0.00016712,2]
[328835827,1717858246825,-3315.68,0.00016712,2]
[328835830,1717858246837,-605.93,0.00016712,2]
[328835833,1717858246848,-500.0,0.00016712,2]
[328835836,1717858246858,-808.5,0.00016712,2]
[328835839,1717858246868,-500.0,0.00016712,2]
[328835844,1717858246890,-500.0,0.00016712,2]
[328835847,1717858246902,-300.93381427,0.00016712,2]
[328836023,1717858254305,10000.0,0.00028,120]
[328836024,1717858285716,2500.0,0.00028,120]
[328836025,1717858651713,-250.1,0.00015164,2]
[328836040,1717859080900,351.62620314,9.999e-05,2]
[328836044,1717859277832,292.43631508,0.00011028,2]
[328836045,1717859278111,207.75,0.00010959,2]
[328836046,1717859300019,154.9690062,0.000136,2]
[328836047,1717859322649,154.9690062,0.000136,2]
[328836048,1717859335806,224.71268,0.00013699,2]
[328836049,1717859342656,154.9690062,0.000136,2]
[328836050,1717859359924,154.9690062,0.000136,2]
[328836051,1717859378692,154.9690062,0.000136,2]
[328836052,1717859394662,199.30436876,0.000136,2]
[328836120,1717859434161,-351.62620314,0.00014237,2]
[328836121,1717859434174,-65.04710416,0.00014238,2]
[328836122,1717859434186,-184.95289584,0.00014238,2]
[328836123,1717859434196,-518.81074766,0.00014441,2]
[328836124,1717859434209,-808.9266927,0.00014441,2]
[328836221,1717859440515,-3179.25355703,0.00014441,2]
[328836273,1717859447583,-10589.52440647,0.00014441,2]
[328836276,1717859447593,-3000.0,0.00014442,2]
[328836279,1717859447604,-164.59629886,0.00014704,2]
[328836282,1717859447615,-187.78108932,0.00014704,2]
[328836285,1717859447625,-594.19746462,0.00014704,2]
[328836288,1717859447635,-158.99250424,0.00014705,2]
[328836290,1717859447645,-1500.82055846,0.00014705,2]
[328836292,1717859447655,-4947.5835392,0.00014706,2]
[328836300,1717859448096,-5536.14195475,0.00014706,2]
[328836301,1717859448108,-335.27337854,0.00014706,2]
[328836366,1717859862996,351.62620314,9.999e-05,2]
[328836367,1717859867589,522.98365817,9.999e-05,2]
[328836374,1717860256227,2310.5247361,0.00013733,2]
[328836375,1717860284904,24900.0,0.00013737,2]
[328836376,1717860330042,351.62620314,9.999e-05,2]
[328836377,1717860369768,199.2493242,0.00013876,2]
[328836378,1717860429929,224.71268,0.00013841,2]
[328836383,1717860483463,-1100.27,0.00014099,2]
[328836384,1717860509051,262.1339519,0.00013959,2]
[328836385,1717860529132,-810.50900154,0.00014099,2]
[328836386,1717860529157,-1958.29099846,0.0001443,2]
[328836387,1717860586290,-351.62620314,0.00014098,2]
[328836388,1717860586312,-2279.43557333,0.0001443,2]
[328836389,1717860586336,-1100.44389189,0.00015,2]
[328836425,1717860633089,-466.0,0.00015068,2]
[328836426,1717860633101,-3442.14320646,0.00015068,2]
[328836427,1717860633111,-181.67894173,0.00015106,2]
[328836428,1717860633121,-1178.11855971,0.00015106,2]
[328836429,1717860633130,-553.4320292,0.00015106,2]
[328836430,1717860633140,-199.07804068,0.00015106,2]
[328836431,1717860633150,-201.57402511,0.00015106,2]
[328836432,1717860633160,-351.62620314,0.00015106,2]
[328836433,1717860633170,-592.85606608,0.00015106,2]
[328836434,1717860633180,-164.59629886,0.00015107,2]
[328836435,1717860633190,-1897.51294574,0.00015107,2]
[328836436,1717860633200,-27363.36668338,0.00015108,2]
[328836437,1717860633210,-166.666666,0.00016,2]
[328836438,1717860633219,-150.61391487,0.00016338,2]
[328836439,1717860633229,-7318.47452839,0.0001639,2]
[328836440,1717860633239,-466.0,0.00016436,2]
[328836441,1717860633249,-3071.27011912,0.00016437,2]
[328836442,1717860633259,-222.93482532,0.00016438,2]
[328836449,1717860639051,-277.06517468,0.00016438,2]
[328836450,1717860639062,-500.0,0.00016438,2]
[328836451,1717860639073,-223.76984885,0.00016438,2]
[328836571,1717860644139,-276.23015115,0.00016438,2]
[328836572,1717860644150,-500.0,0.00016438,2]
[328836573,1717860644161,-500.0,0.00016438,2]
[328836574,1717860644172,-500.0,0.00016438,2]
[328836575,1717860644182,-500.0,0.00016438,2]
[328836576,1717860644192,-500.0,0.00016438,2]
[328836577,1717860644203,-412.61247868,0.00016438,2]
[328836578,1717860644213,-500.0,0.00016438,2]
[328836579,1717860644224,-500.0,0.00016438,2]
[328836580,1717860644234,-500.0,0.00016438,2]
[328836581,1717860644245,-500.0,0.00016438,2]
[328836582,1717860644255,-500.0,0.00016438,2]
[328836583,1717860644266,-500.0,0.00016438,2]
[328836584,1717860644276,-500.0,0.00016438,2]
[328836585,1717860644287,-117.55737017,0.00016438,2]
[328836586,1717860644301,-382.44262983,0.00016438,2]
[328836587,1717860644313,-500.0,0.00016438,2]
[328836588,1717860644324,-500.0,0.00016438,2]
[328836589,1717860644334,-500.0,0.00016438,2]
[328836590,1717860644345,-500.0,0.00016438,2]
[328836591,1717860644355,-500.0,0.00016438,2]
[328836592,1717860644365,-373.75330473,0.00016438,2]
[328836593,1717860644379,-126.24669527,0.00016438,2]
[328836594,1717860644390,-500.0,0.00016438,2]
[328836595,1717860644401,-500.0,0.00016438,2]
[328836596,1717860644411,-500.0,0.00016438,2]
[328836597,1717860644422,-500.0,0.00016438,2]
[328836598,1717860644434,-500.0,0.00016438,2]
[328836599,1717860644444,-500.0,0.00016438,2]
[328836600,1717860644453,-500.0,0.00016438,2]
[328836601,1717860644464,-500.0,0.00016438,2]
[328836602,1717860644474,-151.0,0.00016438,2]
[328836603,1717860644484,-500.0,0.00016438,2]
[328836604,1717860644493,-500.0,0.00016438,2]
[328836605,1717860644504,-500.0,0.00016438,2]
[328836606,1717860644515,-500.0,0.00016438,2]
[328836607,1717860644532,-500.0,0.00016438,2]
[328836608,1717860644541,-500.0,0.00016438,2]
[328836609,1717860644551,-500.0,0.00016438,2]
[328836610,1717860644563,-500.0,0.00016438,2]
[328836611,1717860644572,-500.0,0.00016438,2]
[328836612,1717860644583,-500.0,0.00016438,2]
[328836613,1717860644592,-500.0,0.00016438,2]
[328836614,1717860644603,-500.0,0.00016438,2]
[328836615,1717860644613,-500.0,0.00016438,2]
[328836616,1717860644623,-500.0,0.00016438,2]
[328836617,1717860644633,-500.0,0.00016438,2]
[328836618,1717860644644,-500.0,0.00016438,2]
[328836619,1717860644653,-500.0,0.00016438,2]
[328836620,1717860644664,-500.0,0.00016438,2]
[328836621,1717860644673,-500.0,0.00016438,2]
[328836622,1717860644684,-500.0,0.00016438,2]
[328836623,1717860644694,-500.0,0.00016438,2]
[328836624,1717860644704,-500.0,0.00016438,2]
[328836625,1717860644716,-500.0,0.00016438,2]
[328836626,1717860644726,-500.0,0.00016438,2]
[328836627,1717860644736,-500.0,0.00016438,2]
[328836628,1717860644747,-500.0,0.00016438,2]
[328836629,1717860644758,-847.83,0.00016438,2]
[328836630,1717860644768,-500.0,0.00016438,2]
[328836631,1717860644778,-500.0,0.00016438,2]
[328836632,1717860644788,-151.0,0.00016438,2]
[328836633,1717860644799,-500.0,0.00016438,2]
[328836634,1717860644811,-500.0,0.00016438,2]
[328836635,1717860644820,-500.0,0.00016438,2]
[328836636,1717860644830,-500.0,0.00016438,2]
[328836637,1717860644839,-343.3840321,0.00016438,2]
[328836638,1717860644849,-500.0,0.00016438,2]
[328836639,1717860644859,-500.0,0.00016438,2]
[328836640,1717860644869,-500.0,0.00016438,2]
[328836641,1717860644879,-500.0,0.00016438,2]
[328836642,1717860644889,-500.0,0.00016438,2]
[328836643,1717860644899,-500.0,0.00016438,2]
[328836644,1717860644909,-500.0,0.00016438,2]
[328836645,1717860644920,-500.0,0.00016438,2]
[328836646,1717860644930,-500.0,0.00016438,2]
[328836647,1717860644940,-500.0,0.00016438,2]
[328836648,1717860644951,-500.0,0.00016438,2]
[328836649,1717860644962,-500.0,0.00016438,2]
[328836650,1717860644971,-500.0,0.00016438,2]
[328836651,1717860644981,-564.4,0.00016438,2]
[328836652,1717860644990,-500.0,0.00016438,2]
[328836653,1717860645000,-500.0,0.00016438,2]
[328836654,1717860645010,-151.0,0.00016438,2]
[328836655,1717860645021,-500.0,0.00016438,2]
[328836656,1717860645030,-500.0,0.00016438,2]
[328836657,1717860645041,-500.0,0.00016438,2]
[328836658,1717860645051,-500.0,0.00016438,2]
[328836659,1717860645062,-500.0,0.00016438,2]
[328836660,1717860645072,-500.0,0.00016438,2]
[328836661,1717860645082,-500.0,0.00016438,2]
[328836662,1717860645092,-829.31,0.00016438,2]
[328836663,1717860645102,-500.0,0.00016438,2]
[328836664,1717860645111,-500.0,0.00016438,4]
[328836665,1717860645121,-500.0,0.00016438,2]
[328836672,1717860645256,-151.0,0.00016438,2]
[328836674,1717860645266,-500.0,0.00016438,2]
[328836676,1717860645276,-500.0,0.00016438,2]
[328836677,1717860645286,-151.0,0.00016438,2]
[328836678,1717860645296,-500.0,0.00016438,2]
[328836679,1717860645308,-500.0,0.00016438,2]
[328836680,1717860645318,-500.0,0.00016438,2]
[328836681,1717860645328,-151.0,0.00016438,2]
[328836682,1717860645338,-502.85,0.00016438,2]
[328836683,1717860645347,-500.0,0.00016438,2]
[328836684,1717860645358,-500.0,0.00016438,2]
[328836685,1717860645369,-1858.63,0.00016438,2]
[328836686,1717860645379,-822.35,0.00016438,2]
[328836687,1717860645389,-500.0,0.00016438,2]
[328836688,1717860645399,-343.15073133,0.00016438,2]
[328836689,1717860645414,-239.11926867,0.00016438,2]
[328836690,1717860645426,-263.8926153,0.00016438,2]
[328836692,1717860645699,-236.1073847,0.00016438,2]
[328836694,1717860645710,-281.96517571,0.00016438,2]
[328836703,1717860647195,-140.75409867,0.00016438,2]
[328838941,1717860673973,364.43590794,0.00012327,2]
[328839980,1717860795335,150.0,0.000169,30]
[328839997,1717861593122,-3872.2852235,0.00014078,2]
[328839998,1717861593147,-3000.0,0.00014418,2]
[328839999,1717861593172,-351.62620314,0.00014548,2]
[328840000,1717861593197,-164.59629886,0.00014548,2]
[328840001,1717861593221,-24900.0,0.0001455,2]
[328840002,1717861593247,-200.820113,0.00014972,2]
[328840012,1717861749947,-200.0,0.00028947,120]
[328840043,1717861833474,-200.820114,0.00015375,2]
[328840044,1717861833484,-19226.38763809,0.00015407,2]
[328840045,1717861833493,-166.666666,0.00016,2]
[328840046,1717861833503,-4237.72657179,0.0001623,2]
[328840047,1717861833513,-156.27169823,0.00016273,3]
[328840048,1717861833523,-150.61391487,0.00016338,2]
[328840049,1717861833533,-7318.47452839,0.00016435,2]
[328840050,1717861833543,-517.33468888,0.00016436,2]
[328840051,1717861833555,-3846.13222478,0.00016436,2]
[328840052,1717861833568,-6727.96453924,0.00016436,2]
[328840053,1717861833577,-351.62620314,0.00016436,2]
[328840054,1717861833589,-164.59629886,0.00016436,2]
[328840055,1717861833598,-500.0,0.00016438,2]
[328840056,1717861833609,-249.34792402,0.00016438,2]
[328840081,1717861845471,-500.0,0.00016438,2]
[328840082,1717861845485,-500.0,0.00016438,2]
[328840083,1717861845497,-500.0,0.00016438,2]
[328840084,1717861845508,-500.0,0.00016438,2]
[328840085,1717861845519,-500.0,0.00016438,2]
[328840086,1717861845531,-500.0,0.00016438,2]
[328840087,1717861845545,-500.0,0.00016438,2]
[328840088,1717861845557,-500.0,0.00016438,2]
[328840089,1717861845569,-500.0,0.00016438,2]
[328840090,1717861845579,-500.0,0.00016438,2]
[328840091,1717861845589,-500.0,0.00016438,2]
[328840092,1717861845600,-500.0,0.00016438,2]
[328840093,1717861845610,-500.0,0.00016438,2]
[328840094,1717861845621,-500.0,0.00016438,2]
[328840095,1717861845634,-588.21665389,0.00016438,2]
[328840096,1717861845646,-500.0,0.00016438,2]
[328840097,1717861845657,-587.51633867,0.00016438,2]
[328840098,1717861845668,-500.0,0.00016438,2]
[328840099,1717861845679,-500.0,0.00016438,2]
[328840100,1717861845689,-249.04097137,0.00016438,2]
[328840101,1717861845699,-500.0,0.00016438,2]
[328840102,1717861845710,-500.0,0.00016438,2]
[328840103,1717861845720,-500.0,0.00016438,2]
[328840104,1717861845731,-500.0,0.00016438,2]
[328840105,1717861845742,-500.0,0.00016438,2]
[328840106,1717861845752,-647.95,0.00016438,2]
[328840107,1717861845763,-500.0,0.00016438,2]
[328840108,1717861845774,-500.0,0.00016438,2]
[328840109,1717861845785,-647.2507586,0.00016438,2]
[328840110,1717861845796,-500.0,0.00016438,2]
[328840111,1717861845808,-500.0,0.00016438,2]
[328840112,1717861845819,-500.0,0.00016438,2]
[328840113,1717861845830,-500.0,0.00016438,2]
[328840114,1717861845842,-500.0,0.00016438,2]
[328840115,1717861845852,-500.0,0.00016438,2]
[328840116,1717861845863,-500.0,0.00016438,2]
[328840117,1717861845874,-500.0,0.00016438,2]
[328840118,1717861845884,-500.0,0.00016438,4]
[328840119,1717861845895,-500.0,0.00016438,2]
[328840120,1717861845906,-500.0,0.00016438,2]
[328840121,1717861845916,-535.47,0.00016438,2]
[328840122,1717861845927,-500.0,0.00016438,2]
[328840123,1717861845942,-500.0,0.00016438,2]
[328840124,1717861845952,-500.0,0.00016438,2]
[328840125,1717861845963,-500.0,0.00016438,2]
[328840126,1717861845974,-500.0,0.00016438,2]
[328840127,1717861845985,-500.0,0.00016438,2]
[328840128,1717861845996,-500.0,0.00016438,2]
[328840129,1717861846007,-500.0,0.00016438,2]
[328840130,1717861846021,-500.0,0.00016438,2]
[328840131,1717861846032,-500.0,0.00016438,2]
[328840132,1717861846043,-500.0,0.00016438,2]
[328840133,1717861846053,-540.04,0.00016438,2]
[328840134,1717861846064,-500.0,0.00016438,2]
[328840135,1717861846076,-500.0,0.00016438,2]
[328840136,1717861846088,-500.0,0.00016438,2]
[328840137,1717861846099,-500.0,0.00016438,2]
[328840138,1717861846111,-500.0,0.00016438,2]
[328840139,1717861846122,-500.0,0.00016438,2]
[328840140,1717861846133,-500.0,0.00016438,2]
[328840141,1717861846144,-500.0,0.00016438,2]
[328840142,1717861846155,-500.0,0.00016438,2]
[328840143,1717861846166,-500.0,0.00016438,2]
[328840144,1717861846177,-500.0,0.00016438,2]
[328840145,1717861846188,-500.0,0.00016438,2]
[328840146,1717861846199,-500.0,0.00016438,2]
[328840147,1717861846211,-500.0,0.00016438,2]
[328840148,1717861846222,-500.0,0.00016438,2]
[328840149,1717861846233,-500.0,0.00016438,2]
[328840150,1717861846244,-500.0,0.00016438,2]
[328840151,1717861846255,-500.0,0.00016438,2]
[328840152,1717861846267,-500.0,0.00016438,2]
[328840153,1717861846278,-500.0,0.00016438,2]
[328840154,1717861846291,-500.0,0.00016438,2]
[328840155,1717861846302,-500.0,0.00016438,2]
[328840156,1717861846314,-500.0,0.00016438,2]
[328840157,1717861846327,-500.0,0.00016438,2]
[328840158,1717861846498,-500.0,0.00016438,2]
[328840159,1717861846514,-540.89,0.00016438,2]
[328840160,1717861846525,-500.0,0.00016438,2]
[328840161,1717861846535,-500.0,0.00016438,2]
[328840162,1717861846545,-500.0,0.00016438,2]
[328840163,1717861846555,-500.0,0.00016438,2]
[328840164,1717861846565,-500.0,0.00016438,2]
[328840165,1717861846575,-500.0,0.00016438,2]
[328840166,1717861846584,-500.0,0.00016438,2]
[328840167,1717861846594,-500.0,0.00016438,2]
[328840168,1717861846605,-500.0,0.00016438,2]
[328840169,1717861846614,-500.0,0.00016438,2]
[328840170,1717861846624,-500.0,0.00016438,2]
[328840171,1717861846633,-794.76,0.00016438,2]
[328840172,1717861846643,-500.0,0.00016438,2]
[328840173,1717861846653,-500.0,0.00016438,2]
[328840174,1717861846664,-500.0,0.00016438,2]
[328840175,1717861846674,-558.01,0.00016438,2]
[328840176,1717861846684,-788.09,0.00016438,2]
[328840177,1717861846693,-500.0,0.00016438,2]
[328840178,1717861846703,-500.0,0.00016438,2]
[328840179,1717861846713,-500.0,0.00016438,2]
[328840180,1717861846723,-500.0,0.00016438,2]
[328840181,1717861846733,-500.0,0.00016438,2]
[328840182,1717861846743,-151.0,0.00016438,2]
[328840183,1717861846753,-500.0,0.00016438,2]
[328840184,1717861846762,-151.0,0.00016438,2]
[328840185,1717861846772,-151.0,0.00016438,2]
[328840186,1717861846783,-555.44,0.00016438,2]
[328840187,1717861846792,-500.0,0.00016438,2]
[328840188,1717861846801,-500.0,0.00016438,2]
[328840189,1717861846811,-741.13,0.00016438,2]
[328840190,1717861846822,-2820.88,0.00016438,2]
[328840191,1717861846831,-853.27,0.00016438,2]
[328840192,1717861846841,-500.0,0.00016438,2]
[328840193,1717861846850,-500.0,0.00016438,2]
[328840194,1717861846860,-360.01992435,0.00016438,2]
[328840215,1717861847597,-164.59629886,0.00016437,2]
[328840217,1717861847606,-139.98007565,0.00016438,2]
[328840218,1717861847616,-500.0,0.00016438,2]
[328840220,1717861847625,-500.0,0.00016438,2]
[328840222,1717861847635,-500.0,0.00016438,2]
[328840224,1717861847644,-500.0,0.00016438,2]
[328840226,1717861847653,-610.39026951,0.00016438,2]
[328840227,1717861847663,-151.0,0.00016438,2]
[328840229,1717861847672,-151.0,0.00016438,2]
[328840231,1717861847681,-500.0,0.00016438,2]
[328840233,1717861847691,-500.0,0.00016438,2]
[328840235,1717861847700,-500.0,0.00016438,2]
[328840237,1717861847710,-500.0,0.00016438,2]
[328840238,1717861847719,-500.0,0.00016438,2]
[328840240,1717861847729,-500.0,0.00016438,2]
[328840242,1717861847738,-500.0,0.00016438,2]
[328840244,1717861847747,-500.0,0.00016438,2]
[328840246,1717861847756,-500.0,0.00016438,2]
[328840247,1717861847766,-500.0,0.00016438,2]
[328840249,1717861847775,-15614.11,0.00016438,2]
[328840250,1717861847787,-500.0,0.00016438,2]
[328840251,1717861847797,-500.0,0.00016438,2]
[328840252,1717861847806,-500.0,0.00016438,2]
[328840253,1717861847815,-1596.47,0.00016438,2]
[328840254,1717861847825,-500.0,0.00016438,2]
[328840255,1717861847835,-500.0,0.00016438,2]
[328840256,1717861847844,-500.0,0.00016438,2]
[328840257,1717861847854,-500.0,0.00016438,2]
[328840258,1717861847864,-1598.39,0.00016438,2]
[328840259,1717861847874,-500.0,0.00016438,2]
[328840260,1717861847883,-500.0,0.00016438,2]
[328840261,1717861847893,-683.83,0.00016438,2]
[328840262,1717861847902,-500.0,0.00016438,2]
[328840263,1717861847912,-500.0,0.00016438,2]
[328840264,1717861847921,-500.0,0.00016438,2]
[328840265,1717861847934,-500.0,0.00016438,2]
[328840266,1717861847945,-500.0,0.00016438,2]
[328840267,1717861847955,-500.0,0.00016438,2]
[328840268,1717861847965,-500.0,0.00016438,2]
[328840269,1717861847977,-500.0,0.00016438,2]
[328840270,1717861847986,-579.35301352,0.00016438,2]
[328840271,1717861847996,-588.53,0.00016438,2]
[328840272,1717861848006,-305.36070266,0.00016438,2]
[328840273,1717861848017,-500.0,0.00016438,2]
[328840274,1717861848028,-595.78227432,0.00016438,2]
[328840275,1717861848038,-500.0,0.00016438,2]
[328840276,1717861848048,-500.0,0.00016438,2]
[328840277,1717861848058,-500.0,0.00016438,2]
[328840278,1717861848068,-500.0,0.00016438,2]
[328840279,1717861848079,-500.0,0.00016438,2]
[328840280,1717861848089,-3039.37,0.00016438,2]
[328840281,1717861848100,-500.0,0.00016438,2]
[328840283,1717861848110,-500.0,0.00016438,2]
[328840285,1717861848120,-500.0,0.00016438,2]
[328840286,1717861848130,-245.95849232,0.00016438,2]
[328840287,1717861848141,-500.0,0.00016438,2]
[328840288,1717861848151,-500.0,0.00016438,2]
[328840289,1717861848160,-500.0,0.00016438,2]
[328840290,1717861848170,-152.312495,0.00016438,2]
[328840291,1717861848180,-889.66,0.00016438,2]
[328840292,1717861848189,-500.0,0.00016438,2]
[328840293,1717861848199,-500.0,0.00016438,2]
[328840294,1717861848208,-500.0,0.00016438,2]
[328840295,1717861848218,-500.0,0.00016438,2]
[328840296,1717861848227,-500.0,0.00016438,2]
[328840297,1717861848237,-500.0,0.00016438,2]
[328840298,1717861848247,-500.0,0.00016438,2]
[328840299,1717861848256,-500.0,0.00016438,2]
[328840300,1717861848266,-849.26,0.00016438,2]
[328840301,1717861848276,-1434.11,0.00016438,2]
[328840302,1717861848287,-670.76,0.00016438,2]
[328840303,1717861848297,-500.0,0.00016438,2]
[328840304,1717861848306,-500.0,0.00016438,2]
[328840305,1717861848316,-1076.03,0.00016438,2]
[328840306,1717861848326,-500.0,0.00016438,2]
[328840307,1717861848336,-151.0,0.00016438,2]
[328840308,1717861848348,-234.624732,0.00016438,2]
[328840309,1717861848358,-647.06983541,0.00016438,2]
[328840310,1717861848368,-500.0,0.00016438,2]
[328840311,1717861848378,-500.0,0.00016438,2]
[328840312,1717861848387,-500.0,0.00016438,2]
[328840313,1717861848397,-562.89,0.00016438,2]
[328840314,1717861848406,-500.0,0.00016438,2]
[328840315,1717861848416,-500.0,0.00016438,2]
[328840316,1717861848426,-2152.91,0.00016438,2]
[328840317,1717861848435,-500.0,0.00016438,2]
[328840318,1717861848444,-500.0,0.00016438,2]
[328840319,1717861848454,-500.0,0.00016438,2]
[328840320,1717861848464,-500.0,0.00016438,2]
[328840321,1717861848474,-500.0,0.00016438,2]
[328840322,1717861848484,-500.0,0.00016438,2]
[328840323,1717861848494,-500.0,0.00016438,2]
[328840324,1717861848504,-500.0,0.00016438,2]
[328840325,1717861848513,-250.65207598,0.00016438,2]
[328840326,1717861848524,-500.0,0.00016438,2]
[328840327,1717861848538,-275.55259809,0.000165,2]
[328840328,1717861848548,-500.0,0.00016711,2]
[328840329,1717861848558,-500.0,0.00016711,2]
[328840330,1717861848568,-500.0,0.00016712,2]
[328840331,1717861848578,-521.85294456,0.00016712,2]
[328840332,1717861848588,-414.98,0.00016712,2]
[328840333,1717861848599,-500.0,0.00016712,2]
[328840334,1717861848609,-500.0,0.00016712,2]
[328840335,1717861848619,-500.0,0.00016712,2]
[328840336,1717861848628,-500.0,0.00016712,2]
[328840337,1717861848638,-500.0,0.00016712,4]
[328840338,1717861848647,-500.0,0.00016712,2]
[328840339,1717861848657,-500.0,0.00016712,2]
[328840340,1717861848666,-165.04,0.00016712,2]
[328840341,1717861848679,-500.0,0.00016712,2]
[328840342,1717861848689,-500.0,0.00016712,2]
[328840343,1717861848698,-500.0,0.00016712,2]
[328840344,1717861848708,-500.0,0.00016712,2]
[328840345,1717861848718,-500.0,0.00016712,2]